fUST/lending_fUST_20250911
["ID","MTS","AMOUNT","RATE_DAILY","PERIOD"]
[384866929,1757600316974,480.0,0.00013698,2]
[384866930,1757600318413,6326.79,0.00013698,2]
[384866931,1757600318903,480.0,0.00013698,2]
[384866932,1757600324939,480.0,0.00013698,2]
[384866933,1757600326083,480.0,0.00013698,2]
[384866934,1757600335041,480.0,0.00013698,2]
[384866935,1757600337086,480.0,0.00013698,2]
[384866936,1757600345073,480.0,0.00013698,2]
[384866937,1757600346404,480.0,0.00013698,2]
[384866938,1757600347184,480.0,0.00013698,2]
[384866939,1757600350140,1661.0,0.00013698,2]
[384866940,1757600353052,480.0,0.00013698,2]
[384866941,1757600354301,490.69,0.00013698,2]
[384866942,1757600357000,480.0,0.00013698,2]
[384866943,1757600363733,480.0,0.00013698,2]
[384866944,1757600371951,1000.19,0.00013698,2]
[384866945,1757600375821,14673.3853597,0.00013289,2]
[384866946,1757600377956,480.0,0.00013698,2]
[384866947,1757600384226,3568.21,0.00013698,2]
[384866948,1757600386023,915.89,0.00013698,2]
[384866949,1757600390200,480.0,0.00013698,2]
[384866950,1757600399373,480.0,0.00013698,2]
[384866951,1757600407919,480.0,0.00013698,2]
[384866952,1757600409951,480.0,0.00013698,2]
[384866953,1757600410665,480.0,0.00013698,2]
[384866954,1757600411074,480.0,0.00013698,2]
[384866955,1757600412676,480.0,0.00013698,2]
[384866956,1757600414074,945.9,0.00013698,2]
[384866957,1757600425365,480.0,0.00013698,2]
[384866958,1757600433550,626.31,0.00013698,2]
[384866959,1757600435986,480.0,0.00013698,2]
[384866960,1757600437366,480.0,0.00013698,2]
[384866961,1757600437416,480.0,0.00013698,2]
[384866962,1757600439696,558.78,0.00013698,2]
[384866963,1757600441369,480.0,0.00013698,2]
[384866964,1757600447068,480.0,0.00013698,2]
[384866965,1757600453238,480.0,0.00013698,2]
[384866966,1757600462162,480.0,0.00013698,2]
[384866967,1757600464695,480.0,0.00013698,2]
[384866968,1757600466725,480.0,0.00013698,2]
[384866969,1757600468927,480.0,0.00013698,2]
[384866970,1757600470854,480.0,0.00013698,2]
[384866971,1757600471021,480.0,0.00013698,2]
[384866972,1757600471481,675.51,0.00013698,2]
[384866973,1757600477031,480.0,0.00013698,2]
[384866974,1757600477402,1326.0,0.00013698,2]
[384866975,1757600487417,151.12,0.00013698,2]
[384866976,1757600490240,1375.17,0.00013698,2]
[384866977,1757600496597,413.14174658,0.00013698,2]
[384866978,1757600504317,514.01,0.00013698,2]
[384866979,1757600506761,480.0,0.00013698,2]
[384866980,1757600509037,480.0,0.00013698,2]
[384866981,1757600521501,689.17,0.00013698,2]
[384866982,1757600525705,480.0,0.00013698,2]
[384866983,1757600530036,480.0,0.00013698,2]
[384866984,1757600531697,480.0,0.00013698,2]
[384866985,1757600532203,480.0,0.00013698,2]
[384866986,1757600533726,480.0,0.00013698,2]
[384866987,1757600539413,480.0,0.00013698,2]
[384866988,1757600540696,480.0,0.00013698,2]
[384866989,1757600543105,6063.18,0.00013698,2]
[384866990,1757600560937,480.0,0.00013698,2]
[384866991,1757600561201,480.0,0.00013698,2]
[384866992,1757600578545,234.5957201,0.00013698,2]
[384866993,1757600594834,480.0,0.00013698,2]
[384866994,1757600602235,480.0,0.00013698,2]
[384866996,1757600616084,480.0,0.00013698,2]
[384866997,1757600616855,877.73,0.00013698,2]
[384866998,1757600617323,480.0,0.00013698,2]
[384866999,1757600627870,480.0,0.00013698,2]
[384867000,1757600633545,480.0,0.00013698,2]
[384867001,1757600689288,480.0,0.00013698,2]
[384867002,1757600695617,480.0,0.00013698,2]
[384867005,1757600725406,547.1,0.00013698,2]
[384867007,1757600734079,480.0,0.00013698,2]
[384867008,1757600735244,535.132011,0.00013699,2]
[384867012,1757600741600,647.37,0.00013698,2]
[384867014,1757600776345,480.0,0.00013698,2]
[384867015,1757600788716,480.0,0.00013698,2]
[384867016,1757600818451,285.960168,0.00013699,2]
[384867017,1757600822019,480.0,0.00013698,2]
[384867018,1757600825041,480.0,0.00013698,2]
[384867019,1757600830582,682.50699232,0.00013546,2]
[384867020,1757600831059,287.573647,0.00013548,2]
[384867021,1757600834618,490.4360983,0.00013698,2]
[384867022,1757600843476,482.83658517,0.00013698,2]
[384867024,1757600871407,480.0,0.00013698,2]
[384867025,1757600896259,480.0,0.00013698,2]
[384867026,1757600897446,480.0,0.00013698,2]
[384867027,1757600898335,480.0,0.00013698,2]
[384867030,1757600912251,480.0,0.00013698,2]
[384867031,1757600914437,573.55,0.00013698,2]
[384867033,1757600925560,485.48850204,0.00013286,2]
[384867034,1757600927905,1940.01205415,0.00013286,2]
[384867035,1757600930302,153.69456041,0.00013426,2]
[384867036,1757600932556,614.16346341,0.00013426,2]
[384867037,1757600956461,480.0,0.00013698,2]
[384867039,1757601024365,301.39404378,0.00013286,2]
[384867040,1757601026644,1204.37059895,0.00013286,2]
[384867085,1757601032518,-170.84828745,0.00013864,2]
[384867087,1757601032528,-170.84828744,0.00013865,2]
[384867089,1757601032538,-2030.296672,0.00013958,2]
[384867091,1757601032547,-500.0,0.00013958,2]
[384867093,1757601032557,-151.0,0.00013958,2]
[384867095,1757601032566,-500.0,0.00013958,2]
[384867097,1757601032575,-151.0,0.00013958,2]
[384867099,1757601032585,-500.0,0.00013958,2]
[384867101,1757601032595,-151.0,0.00013958,2]
[384867103,1757601032604,-151.0,0.00013958,2]
[384867105,1757601032613,-500.0,0.00013958,2]
[384867107,1757601032622,-151.0,0.00013958,2]
[384867109,1757601032631,-500.0,0.00013958,2]
[384867111,1757601032641,-151.0,0.00013958,2]
[384867113,1757601032650,-151.0,0.00013958,2]
[384867115,1757601032659,-500.0,0.00013958,2]
[384867117,1757601032669,-151.0,0.00013958,2]
[384867119,1757601032679,-151.0,0.00013958,2]
[384867122,1757601032688,-151.0,0.00013958,2]
[384867136,1757601032785,-151.0,0.00013958,2]
[384867139,1757601032825,-500.0,0.00013958,2]
[384867141,1757601032835,-151.0,0.00013958,2]
[384867143,1757601032845,-162.380719,0.00013958,2]
[384867145,1757601032854,-250.0,0.00013958,2]
[384867147,1757601032864,-500.0,0.00013958,2]
[384867149,1757601032873,-151.0,0.00013958,2]
[384867151,1757601032882,-151.0,0.00013958,2]
[384867153,1757601032892,-250.0,0.00013958,2]
[384867155,1757601032902,-151.0,0.00013958,2]
[384867157,1757601032912,-166.15641849,0.00013958,2]
[384867159,1757601032921,-500.0,0.00013958,2]
[384867161,1757601032930,-250.0,0.00013958,2]
[384867163,1757601032940,-151.0,0.00013958,2]
[384867165,1757601032950,-500.0,0.00013958,2]
[384867167,1757601032960,-250.0,0.00013958,2]
[384867169,1757601032969,-151.0,0.00013958,2]
[384867171,1757601032979,-500.0,0.00013958,2]
[384867173,1757601032989,-250.0,0.00013958,2]
[384867175,1757601032998,-151.0,0.00013958,2]
[384867177,1757601033007,-250.0,0.00013958,2]
[384867179,1757601033016,-500.0,0.00013958,2]
[384867181,1757601033026,-151.0,0.00013958,2]
[384867183,1757601033036,-250.0,0.00013958,2]
[384867185,1757601033045,-250.0,0.00013958,2]
[384867186,1757601033055,-151.0,0.00013958,2]
[384867188,1757601033065,-500.0,0.00013958,2]
[384867190,1757601033074,-374.47588989,0.00013958,2]
[384867193,1757601033085,-151.0,0.00013958,2]
[384867195,1757601033095,-500.0,0.00013958,2]
[384867197,1757601033106,-151.0,0.00013958,2]
[384867198,1757601033116,-500.0,0.00013958,2]
[384867200,1757601033127,-151.0,0.00013958,2]
[384867202,1757601033137,-500.0,0.00013958,2]
[384867204,1757601033147,-151.0,0.00013958,2]
[384867206,1757601033157,-500.0,0.00013958,2]
[384867208,1757601033167,-151.0,0.00013958,2]
[384867210,1757601033177,-500.0,0.00013958,2]
[384867212,1757601033187,-151.0,0.00013958,2]
[384867214,1757601033197,-18603.8837,0.00013958,2]
[384867216,1757601033207,-151.0,0.00013958,2]
[384867218,1757601033216,-151.0,0.00013958,2]
[384867220,1757601033226,-236.26960803,0.00013958,2]
[384867222,1757601033235,-300.0,0.00013963,2]
[384867224,1757601033244,-300.0,0.00013963,2]
[384867226,1757601033253,-300.0,0.00013963,2]
[384867227,1757601033263,-300.0,0.00013963,2]
[384867228,1757601033273,-1200.0,0.00013963,2]
[384867229,1757601033283,-1200.0,0.00013964,2]
[384867230,1757601033296,-480.0,0.00013964,2]
[384867231,1757601033307,-480.0,0.00013964,2]
[384867232,1757601033317,-480.0,0.00013964,2]
[384867234,1757601033326,-480.0,0.00013964,2]
[384867236,1757601033337,-388.73259158,0.00013964,2]
[384867238,1757601033347,-500.0,0.00013964,2]
[384867240,1757601033357,-245.21275989,0.00013964,2]
[384867242,1757601033369,-382.78355624,0.00013964,2]
[384867244,1757601033379,-152.10813919,0.00013964,2]
[384867246,1757601033389,-500.0,0.00013964,2]
[384867248,1757601033399,-500.0,0.00013964,2]
[384867250,1757601033410,-500.0,0.00013964,2]
[384867252,1757601033420,-500.0,0.00013964,2]
[384867254,1757601033430,-500.0,0.00013964,2]
[384867256,1757601033440,-500.0,0.00013964,2]
[384867257,1757601033449,-500.0,0.00013964,2]
[384867258,1757601033459,-500.0,0.00013964,2]
[384867259,1757601033470,-500.0,0.00013964,2]
[384867260,1757601033480,-168.75845426,0.00013964,2]
[384867261,1757601033490,-500.0,0.00013964,2]
[384867262,1757601033500,-500.0,0.00013964,2]
[384867264,1757601033510,-500.0,0.00013964,2]
[384867266,1757601033520,-500.0,0.00013964,2]
[384867268,1757601033529,-500.0,0.00013964,2]
[384867270,1757601033538,-500.0,0.00013964,2]
[384867272,1757601033548,-320.314973,0.00013964,2]
[384867273,1757601033557,-500.0,0.00013964,2]
[384867274,1757601033566,-500.0,0.00013964,2]
[384867275,1757601033576,-500.0,0.00013964,2]
[384867277,1757601033586,-500.0,0.00013964,2]
[384867278,1757601033596,-500.0,0.00013964,2]
[384867279,1757601033605,-500.0,0.00013964,2]
[384867280,1757601033615,-500.0,0.00013964,2]
[384867281,1757601033625,-500.0,0.00013964,2]
[384867282,1757601033635,-500.0,0.00013964,2]
[384867283,1757601033644,-500.0,0.00013964,2]
[384867284,1757601033653,-500.0,0.00013964,2]
[384867285,1757601033663,-500.0,0.00013964,2]
[384867286,1757601033673,-500.0,0.00013964,2]
[384867287,1757601033683,-500.0,0.00013964,2]
[384867288,1757601033693,-500.0,0.00013964,2]
[384867289,1757601033703,-500.0,0.00013964,2]
[384867290,1757601033713,-500.0,0.00013964,2]
[384867291,1757601033722,-500.0,0.00013964,2]
[384867292,1757601033733,-500.0,0.00013964,2]
[384867293,1757601033743,-500.0,0.00013964,2]
[384867294,1757601033753,-500.0,0.00013964,2]
[384867295,1757601033763,-500.0,0.00013964,2]
[384867296,1757601033772,-500.0,0.00013964,2]
[384867297,1757601033781,-500.0,0.00013964,2]
[384867298,1757601033791,-500.0,0.00013964,2]
[384867299,1757601033801,-500.0,0.00013964,2]
[384867300,1757601033810,-500.0,0.00013964,2]
[384867301,1757601033820,-500.0,0.00013964,2]
[384867302,1757601033829,-500.0,0.00013964,2]
[384867303,1757601033838,-500.0,0.00013964,2]
[384867304,1757601033848,-500.0,0.00013964,2]
[384867305,1757601033857,-500.0,0.00013964,2]
[384867306,1757601033867,-500.0,0.00013964,2]
[384867307,1757601033877,-500.0,0.00013964,2]
[384867308,1757601033887,-500.0,0.00013964,2]
[384867309,1757601033897,-500.0,0.00013964,2]
[384867310,1757601033906,-500.0,0.00013964,2]
[384867311,1757601033916,-500.0,0.00013964,2]
[384867312,1757601033926,-500.0,0.00013964,2]
[384867313,1757601033936,-500.0,0.00013964,2]
[384867314,1757601033946,-500.0,0.00013964,2]
[384867315,1757601033956,-500.0,0.00013964,2]
[384867316,1757601033965,-500.0,0.00013964,2]
[384867317,1757601033975,-500.0,0.00013964,2]
[384867318,1757601033984,-500.0,0.00013964,2]
[384867319,1757601033993,-500.0,0.00013964,2]
[384867320,1757601034003,-500.0,0.00013964,2]
[384867321,1757601034013,-500.0,0.00013964,2]
[384867322,1757601034022,-500.0,0.00013964,2]
[384867323,1757601034031,-500.0,0.00013964,2]
[384867324,1757601034041,-500.0,0.00013964,2]
[384867325,1757601034050,-408.80117543,0.00013964,2]
[384867326,1757601034059,-500.0,0.00013964,2]
[384867327,1757601034069,-500.0,0.00013964,2]
[384867328,1757601034078,-592.14033893,0.00013964,2]
[384867329,1757601034087,-480.0,0.00013965,2]
[384867330,1757601034096,-480.0,0.00013965,2]
[384867331,1757601034105,-872.74,0.00013965,2]
[384867332,1757601034115,-2141.19,0.00013967,2]
[384867333,1757601034124,-480.0,0.00013967,2]
[384867334,1757601034133,-1406.53,0.00013967,2]
[384867335,1757601034142,-480.0,0.00013967,2]
[384867336,1757601034152,-480.0,0.00013967,2]
[384867337,1757601034161,-480.0,0.00013967,2]
[384867338,1757601034170,-480.0,0.00013967,2]
[384867339,1757601034180,-480.0,0.00013967,2]
[384867340,1757601034189,-1098.5,0.00013967,2]
[384867341,1757601034199,-1468.26,0.00013967,2]
[384867342,1757601034209,-1366.16,0.00013967,2]
[384867343,1757601034218,-480.0,0.00013967,2]
[384867344,1757601034228,-480.0,0.00013967,2]
[384867345,1757601034237,-480.0,0.00013967,2]
[384867346,1757601034246,-604.65,0.00013967,2]
[384867347,1757601034256,-480.0,0.00013967,2]
[384867348,1757601034265,-763.89,0.00013967,2]
[384867349,1757601034275,-554.84,0.00013968,2]
[384867350,1757601034285,-480.0,0.00013968,2]
[384867351,1757601034296,-480.0,0.00013968,2]
[384867352,1757601034306,-480.0,0.00013968,2]
[384867353,1757601034315,-480.0,0.00013968,2]
[384867354,1757601034324,-480.0,0.00013968,2]
[384867355,1757601034335,-480.0,0.00013968,2]
[384867356,1757601034344,-480.0,0.00013968,2]
[384867357,1757601034354,-747.74,0.00013968,2]
[384867358,1757601034364,-480.0,0.00013968,2]
[384867359,1757601034374,-271.83981498,0.00013968,2]
[384867360,1757601034383,-480.0,0.00013968,2]
[384867361,1757601034393,-878.18,0.00013968,2]
[384867362,1757601034402,-266.13,0.00013968,2]
[384867363,1757601034411,-480.0,0.00013968,2]
[384867364,1757601034420,-480.0,0.00013968,2]
[384867365,1757601034430,-480.0,0.00013968,2]
[384867366,1757601034439,-480.0,0.00013968,2]
[384867367,1757601034448,-480.0,0.00013968,2]
[384867368,1757601034458,-480.0,0.00013968,2]
[384867369,1757601034467,-480.0,0.00013968,2]
[384867370,1757601034477,-480.0,0.00013968,2]
[384867371,1757601034486,-515.98,0.00013968,2]
[384867372,1757601034495,-480.0,0.00013969,2]
[384867373,1757601034504,-480.0,0.00013969,2]
[384867374,1757601034514,-480.0,0.00013969,2]
[384867375,1757601034523,-480.0,0.00013969,2]
[384867376,1757601034533,-480.0,0.00013969,2]
[384867377,1757601034542,-480.0,0.00013969,2]
[384867378,1757601034552,-480.0,0.00013969,2]
[384867379,1757601034561,-3419.53,0.0001397,2]
[384867380,1757601034571,-906.48,0.0001397,2]
[384867381,1757601034580,-1270.75,0.0001397,2]
[384867382,1757601034589,-480.0,0.00013971,2]
[384867383,1757601034599,-480.0,0.00013971,2]
[384867384,1757601034608,-480.0,0.00013971,2]
[384867385,1757601034617,-552.68133302,0.00013971,2]
[384867386,1757601034627,-480.0,0.00013971,2]
[384867387,1757601034636,-480.0,0.00013971,2]
[384867388,1757601034646,-480.0,0.00013971,2]
[384867389,1757601034655,-480.0,0.00013971,2]
[384867390,1757601034665,-480.0,0.00013971,2]
[384867391,1757601034675,-480.0,0.00013971,2]
[384867392,1757601034685,-480.0,0.00013971,2]
[384867393,1757601034694,-480.0,0.00013971,2]
[384867394,1757601034704,-480.0,0.00013971,2]
[384867395,1757601034714,-480.0,0.00013971,2]
[384867396,1757601034724,-489.0,0.00013971,2]
[384867397,1757601034734,-480.0,0.00013971,2]
[384867398,1757601034744,-458.74023675,0.00013971,2]
[384867399,1757601034753,-480.0,0.00013971,2]
[384867400,1757601034762,-578.62,0.00013971,2]
[384867401,1757601034772,-480.0,0.00013971,2]
[384867402,1757601034781,-304.64,0.00013971,2]
[384867403,1757601034790,-480.0,0.00013971,2]
[384867404,1757601034799,-480.0,0.00013971,2]
[384867405,1757601034809,-480.0,0.00013971,2]
[384867406,1757601034818,-480.0,0.00013971,2]
[384867407,1757601034827,-480.0,0.00013971,2]
[384867408,1757601034837,-255.30339099,0.00013971,2]
[384867409,1757601034846,-341.53491915,0.00013971,2]
[384867410,1757601034856,-480.0,0.00013971,2]
[384867411,1757601034865,-480.0,0.00013971,2]
[384867412,1757601034874,-480.0,0.00013971,2]
[384867413,1757601034883,-480.0,0.00013971,2]
[384867414,1757601034893,-480.0,0.00013971,2]
[384867415,1757601034903,-480.0,0.00013971,2]
[384867416,1757601034912,-1591.79,0.00013971,2]
[384867417,1757601034921,-958.51,0.00013971,2]
[384867418,1757601034931,-480.0,0.00013971,2]
[384867419,1757601034939,-600.21,0.00013971,2]
[384867420,1757601034949,-500.0,0.00013971,2]
[384867421,1757601034959,-1317.87,0.00013971,2]
[384867422,1757601034968,-480.0,0.00013972,2]
[384867423,1757601034978,-480.0,0.00013972,2]
[384867424,1757601034988,-480.0,0.00013972,2]
[384867425,1757601034997,-480.0,0.00013972,2]
[384867426,1757601035006,-480.0,0.00013972,2]
[384867427,1757601035016,-480.0,0.00013972,2]
[384867428,1757601035025,-480.0,0.00013972,2]
[384867429,1757601035034,-480.0,0.00013972,2]
[384867430,1757601035043,-689.17,0.00013972,2]
[384867431,1757601035052,-480.0,0.00013972,2]
[384867432,1757601035062,-480.0,0.00013972,2]
[384867433,1757601035071,-468.6,0.00013972,2]
[384867434,1757601035081,-480.0,0.00013972,2]
[384867435,1757601035090,-480.0,0.00013972,2]
[384867436,1757601035100,-480.0,0.00013972,2]
[384867437,1757601035110,-547.1,0.00013972,2]
[384867438,1757601035211,-480.0,0.00013972,2]
[384867439,1757601035220,-393.02,0.00013972,2]
[384867440,1757601035229,-480.0,0.00013972,2]
[384867441,1757601035238,-480.0,0.00013972,2]
[384867442,1757601035247,-573.55,0.00013972,2]
[384867443,1757601035256,-472.3634134,0.00014013,2]
[384867444,1757601035271,-1114.08641614,0.00014013,2]
[384867445,1757601035302,-518.96781932,0.00014013,2]
[384867446,1757601035312,-602.53218068,0.00014068,2]
[384867450,1757601038266,-272.64432194,0.00013966,2]
[384867451,1757601038276,-182.62567806,0.00013966,2]
[384867452,1757601038288,-326.22929654,0.00013966,2]
[384867453,1757601038299,-1562.04127499,0.00014068,2]
[384867454,1757601038311,-18.7446462,0.00014068,2]
[384867455,1757601038320,-648.93108692,0.00014123,2]
[384867456,1757601038332,-516.76249321,0.00014123,2]
[384867457,1757601038344,-1098.40729151,0.00014123,2]
[384867458,1757601038354,-12.51090243,0.00014178,2]
[384867459,1757601038367,-2320.95596561,0.00014178,2]
[384867460,1757601038379,-14.40573585,0.00014178,2]
[384867461,1757601038388,-580.57831309,0.00014233,2]
[384867462,1757601038399,-561.84778779,0.00014233,2]
[384867463,1757601038411,-1192.07922957,0.00014233,2]
[384867464,1757601038422,-100.23855979,0.00014233,2]
[384867465,1757601038432,-398.62584068,0.00014238,2]
[384867466,1757601038445,-480.0,0.00014238,2]
[384867467,1757601038455,-480.0,0.00014239,2]
[384867468,1757601038464,-461.13559953,0.00014239,2]
[384867469,1757601038475,-18.86440047,0.00014239,2]
[384867470,1757601038484,-872.74,0.00014239,2]
[384867471,1757601038494,-2141.19,0.00014241,2]
[384867472,1757601038503,-1406.53,0.00014241,2]
[384867473,1757601038512,-480.0,0.00014241,2]
[384867474,1757601038521,-480.0,0.00014241,2]
[384867475,1757601038531,-1098.5,0.00014241,2]
[384867476,1757601038539,-1468.26,0.00014241,2]
[384867477,1757601038549,-1070.07801413,0.00014241,2]
[384867478,1757601038560,-296.08198587,0.00014241,2]
[384867479,1757601038570,-480.0,0.00014241,2]
[384867480,1757601038579,-480.0,0.00014241,2]
[384867481,1757601038588,-480.0,0.00014241,2]
[384867482,1757601038597,-604.65,0.00014241,2]
[384867483,1757601038607,-480.0,0.00014241,2]
[384867484,1757601038616,-763.89,0.00014241,2]
[384867485,1757601038626,-480.0,0.00014242,2]
[384867486,1757601038636,-480.0,0.00014242,2]
[384867487,1757601038645,-542.42,0.00014242,2]
[384867488,1757601038654,-480.0,0.00014242,2]
[384867489,1757601038663,-480.0,0.00014242,2]
[384867490,1757601038673,-747.74,0.00014242,2]
[384867491,1757601038682,-480.0,0.00014242,2]
[384867492,1757601038691,-480.0,0.00014242,2]
[384867493,1757601038700,-323.67179099,0.00014242,2]
[384867500,1757601040273,-382.76199589,0.00014242,2]
[384867502,1757601040285,-171.74621312,0.00014242,2]
[384867503,1757601040297,-480.0,0.00014242,2]
[384867504,1757601040306,-480.0,0.00014242,2]
[384867505,1757601040316,-480.0,0.00014242,2]
[384867506,1757601040325,-480.0,0.00014242,2]
[384867507,1757601040336,-314.52525359,0.00014242,2]
[384867542,1757601043953,-165.47474641,0.00014242,2]
[384867543,1757601043963,-480.0,0.00014242,2]
[384867544,1757601043972,-480.0,0.00014242,2]
[384867545,1757601043982,-480.0,0.00014242,2]
[384867546,1757601043991,-515.98,0.00014242,2]
[384867547,1757601044001,-480.0,0.00014243,2]
[384867548,1757601044010,-480.0,0.00014243,2]
[384867549,1757601044019,-480.0,0.00014243,2]
[384867550,1757601044028,-480.0,0.00014243,2]
[384867551,1757601044037,-480.0,0.00014243,2]
[384867552,1757601044047,-3419.53,0.00014244,2]
[384867553,1757601044056,-906.48,0.00014244,2]
[384867554,1757601044065,-500.0,0.00014244,2]
[384867555,1757601044075,-1270.75,0.00014244,2]
[384867556,1757601044084,-483.08,0.00014245,2]
[384867557,1757601044095,-480.0,0.00014245,2]
[384867558,1757601044104,-480.0,0.00014245,2]
[384867559,1757601044113,-480.0,0.00014245,2]
[384867560,1757601044122,-480.0,0.00014245,2]
[384867561,1757601044132,-520.98723952,0.00014245,2]
[384867562,1757601044141,-480.0,0.00014245,2]
[384867563,1757601044150,-480.0,0.00014245,2]
[384867564,1757601044160,-480.0,0.00014245,2]
[384867565,1757601044170,-480.0,0.00014245,2]
[384867566,1757601044179,-480.0,0.00014245,2]
[384867567,1757601044187,-480.0,0.00014245,2]
[384867568,1757601044196,-480.0,0.00014245,2]
[384867569,1757601044205,-480.0,0.00014245,2]
[384867570,1757601044215,-5810.54,0.00014245,2]
[384867571,1757601044224,-1591.79,0.00014245,2]
[384867572,1757601044234,-480.0,0.00014245,2]
[384867573,1757601044243,-958.51,0.00014245,2]
[384867574,1757601044254,-480.0,0.00014245,2]
[384867575,1757601044263,-841.15,0.00014245,2]
[384867576,1757601044273,-600.21,0.00014245,2]
[384867577,1757601044283,-500.0,0.00014245,2]
[384867578,1757601044297,-1317.87,0.00014245,2]
[384867579,1757601044307,-480.0,0.00014245,2]
[384867580,1757601044316,-480.0,0.00014246,2]
[384867581,1757601044325,-480.0,0.00014246,2]
[384867582,1757601044334,-480.0,0.00014246,2]
[384867583,1757601044344,-480.0,0.00014246,2]
[384867584,1757601044353,-325.16,0.00014246,2]
[384867585,1757601044363,-480.0,0.00014246,2]
[384867586,1757601044373,-689.17,0.00014246,2]
[384867587,1757601044382,-480.0,0.00014246,2]
[384867588,1757601044391,-480.0,0.00014246,2]
[384867589,1757601044400,-480.0,0.00014246,2]
[384867590,1757601044409,-480.0,0.00014246,2]
[384867591,1757601044419,-11.32951555,0.00014246,2]
[384867592,1757601044432,-468.67048445,0.00014246,2]
[384867593,1757601044441,-547.1,0.00014246,2]
[384867594,1757601044451,-480.0,0.00014246,2]
[384867595,1757601044460,-373.21172981,0.00014246,2]
[384867596,1757601044671,-106.78827019,0.00014246,2]
[384867597,1757601044682,-128.88852399,0.00014246,2]
[384867598,1757601044886,-151.0,0.00013958,2]
[384867599,1757601044900,-351.11147601,0.00014246,2]
[384867600,1757601044913,-573.55,0.00014246,2]
[384867601,1757601044924,-500.0,0.00014273,2]
[384867602,1757601044936,-2524.82941417,0.00014288,2]
[384867603,1757601044949,-439.50911004,0.00014343,2]
[384867604,1757601044963,-2178.73899246,0.00014343,2]
[384867605,1757601044974,-217.69300629,0.00014397,2]
[384867606,1757601044986,-2608.26653111,0.00014398,2]
[384867620,1757601046640,-480.0,0.00013964,2]
[384867621,1757601046652,-480.0,0.00013971,2]
[384867622,1757601046664,-106.85675118,0.00014398,2]
[384867623,1757601046675,-160.0,0.00014402,2]
[384867624,1757601046687,-160.0,0.00014402,2]
[384867625,1757601046698,-233.10680167,0.00014402,2]
[384867626,1757601046709,-846.96613202,0.00014402,2]
[384867627,1757601046720,-530.95967032,0.00014402,2]
[384867628,1757601046732,-160.0,0.00014402,2]
[384867629,1757601046744,-417.15472785,0.00014402,2]
[384867630,1757601046755,-160.0,0.00014402,2]
[384867631,1757601046767,-3477.1823806,0.0001442,2]
[384867632,1757601046778,-2815.58284374,0.00014453,2]
[384867633,1757601046790,-19292.2273969,0.00014506,2]
[384867634,1757601046801,-2919.75940895,0.00014508,2]
[384867635,1757601046813,-480.0,0.00014512,2]
[384867636,1757601046824,-480.0,0.00014513,2]
[384867637,1757601046835,-510.44,0.00014513,2]